bitfinex-derivatives/quotes_ETHF0:USTF0_20260306
["timestamp","ask_amount","ask_price","bid_price","bid_amount"]
[1772787549515,0.59262385,2076.0,2075.1,0.55446675]
[1772787549714,0.59262385,2076.0,2075.1,6.6155646]
[1772787549916,0.59262385,2076.0,2075.2,0.55446675]
[1772787551215,0.00621161,2076.1,2075.4,0.55446675]
[1772787551414,0.59883546,2076.1,2075.4,0.55446675]
[1772787554819,0.59883546,2076.1,2075.2,0.55446675]
[1772787557525,0.59262385,2075.9,2075.0,0.55446675]
[1772787560123,0.59262385,2075.9,2075.1,0.55446675]
[1772787561921,0.59262385,2075.9,2075.0,0.55446675]
[1772787566631,0.59262385,2075.7,2075.0,0.55446675]
[1772787571331,0.59262385,2075.8,2075.0,0.55446675]
[1772787571531,0.58696718,2076.0,2075.0,0.55446675]
[1772787571730,0.58696718,2076.0,2075.1,0.55062641]
[1772787573235,0.58696718,2076.0,2075.2,0.55062641]
[1772787573436,0.58696718,2076.0,2075.4,0.55062641]
[1772787575132,0.00621161,2076.1,2075.4,0.55062641]
[1772787575337,0.59317879,2076.1,2075.4,0.55062641]
[1772787578134,0.00621161,2076.1,2075.4,0.55062641]
[1772787578329,0.59317879,2076.1,2075.4,0.55062641]
[1772787582042,0.00621161,2076.1,2075.4,0.55062641]
[1772787582241,0.59317879,2076.1,2075.4,0.55062641]
[1772787585652,0.59317879,2076.1,2075.4,15.32262641]
[1772787585850,0.59317879,2076.1,2075.5,0.55062641]
[1772787593856,0.58696718,2076.4,2075.5,0.55062641]
[1772787594068,0.58696718,2076.6,2075.7,0.55062641]
[1772787594361,0.58696718,2076.8,2075.9,0.55062641]
[1772787594563,0.58696718,2076.8,2076.1,0.55062641]
[1772787595060,0.59191019,2076.8,2076.1,0.55062641]
[1772787600156,4.60657193,2077.2,2076.1,0.55062641]
[1772787600362,0.58696718,2077.4,2076.3,0.55062641]
[1772787600661,0.58696718,2077.4,2076.4,0.55062641]
[1772787600860,0.58696718,2077.4,2076.5,0.55062641]
[1772787601264,0.58696718,2077.2,2076.5,0.00506052]
[1772787602461,0.58696718,2077.2,2076.5,0.56867074]
[1772787603567,0.58696718,2077.2,2076.5,0.00506052]
[1772787604663,0.58696718,2077.2,2076.5,0.56867074]
[1772787606158,0.60046316,2077.4,2076.5,0.56867074]
[1772787610777,0.60046316,2077.4,2076.6,0.56361022]
[1772787610972,0.5952975,2077.3,2076.5,0.56867074]
[1772787613670,0.5952975,2077.3,2076.5,0.00506052]
[1772787613872,0.5952975,2077.1,2076.5,0.00506052]
[1772787614280,0.5952975,2077.1,2076.5,0.56867074]
[1772787615376,0.5952975,2077.3,2076.5,0.56867074]
[1772787622079,0.00516566,2077.4,2076.5,0.56867074]
[1772787622381,0.60046316,2077.4,2076.5,0.56867074]
[1772787630689,0.5952975,2077.2,2076.5,0.56867074]
[1772787631589,0.56642612,2077.3,2076.5,0.56867074]
[1772787639693,0.56642612,2077.3,2076.5,0.00506052]
[1772787639694,0.56642612,2077.1,2076.5,0.00506052]
[1772787639991,0.56642612,2077.0,2076.3,0.56069046]
[1772787640790,0.47067823,2077.0,2076.3,0.56615988]
[1772787642397,0.54284624,2076.8,2076.3,0.00546942]
[1772787642586,0.54284624,2076.8,2076.0,0.56069046]
[1772787643687,0.53737682,2076.6,2076.0,0.56416736]
[1772787643892,0.53737682,2076.6,2076.0,0.0034769]
[1772787644989,0.53737682,2076.6,2076.0,0.56416736]
[1772787646688,0.53737682,2076.6,2076.0,0.0034769]
[1772787646883,0.53737682,2076.6,2075.7,0.56069046]
[1772787647084,0.51079042,2076.4,2075.7,0.56069046]
[1772787647692,0.51079042,2076.2,2075.3,0.56069046]
[1772787647992,0.51079042,2076.2,2075.3,0.5664151]
[1772787651292,0.49317737,2076.0,2075.0,0.56069046]
[1772787651498,0.49317737,2076.1,2075.0,0.56069046]
[1772787651794,6.80217737,2076.3,2075.2,0.56069046]
[1772787651996,0.48392679,2076.2,2075.2,0.56069046]
[1772787652387,0.48392679,2076.6,2075.5,0.56069046]
[1772787656602,0.48478516,2076.7,2075.7,0.56069046]
[1772787659103,0.52365965,2076.9,2075.7,0.56069046]
[1772787661000,0.52511592,2076.7,2075.7,0.56069046]
[1772787661202,0.52511592,2076.5,2075.7,0.56069046]
[1772787661602,0.24078,2076.4,2075.7,0.56069046]
[1772787661903,0.52470082,2076.1,2075.3,0.57621397]
[1772787662107,0.53141012,2076.1,2075.3,0.57621397]
[1772787663703,0.53141012,2076.4,2075.3,0.57621397]
[1772787669904,0.53141012,2076.4,2075.5,0.57621397]
[1772787670112,0.54332438,2076.5,2075.5,0.57621397]
[1772787676017,0.53931065,2076.3,2075.5,0.57621397]
[1772787676924,0.53931065,2076.1,2075.5,0.57621397]
[1772787677123,0.53931065,2076.1,2075.3,0.57621397]
[1772787677623,0.53931065,2075.9,2075.2,0.5819365]
[1772787677814,0.54490511,2075.9,2075.2,0.5819365]
[1772787678319,0.54490511,2075.9,2075.2,0.00572253]
[1772787681425,0.49424323,2075.7,2075.2,0.00572253]
[1772787683121,0.49424323,2075.7,2074.9,0.57621397]
[1772787684224,0.49424323,2075.7,2074.9,0.58165905]
[1772787692525,4.01266859,2075.9,2074.3,0.5686272]
[1772787692526,0.47931922,2075.3,2074.3,0.5686272]
[1772787692729,0.47931922,2075.1,2074.0,0.5686272]
[1772787692929,0.47931922,2075.0,2074.0,0.5686272]
[1772787693630,0.47931922,2074.8,2074.0,0.57317668]
[1772787696525,0.46375173,2075.0,2074.0,0.57317668]
[1772787697422,0.46375173,2075.2,2074.2,0.5686272]
[1772787697626,6.31,2075.4,2074.2,0.5686272]
[1772787697627,0.46375173,2075.3,2074.2,0.5686272]
[1772787698925,0.45525498,2075.5,2074.2,0.5686272]
[1772787699128,0.45525498,2075.3,2074.2,0.5686272]
[1772787700528,0.45525498,2075.3,2074.4,0.5686272]
[1772787700733,6.76818118,2075.5,2074.4,0.5686272]
[1772787701032,0.45818118,2075.4,2074.4,0.5686272]
[1772787701826,6.7710108,2075.5,2074.4,0.5686272]
[1772787702331,0.4610108,2075.4,2074.4,0.5686272]
[1772787703532,6.31,2075.5,2074.4,0.5686272]
[1772787703533,6.7710108,2075.5,2074.4,0.5686272]
[1772787703835,0.46112309,2075.4,2074.4,0.5686272]
[1772787706831,0.46302732,2075.6,2074.4,0.5686272]
[1772787707027,4.24794413,2075.7,2074.4,0.5686272]
[1772787707028,5.87348907,2075.5,2074.4,0.5686272]
[1772787707233,5.41046175,2075.4,2074.4,0.5686272]
[1772787707434,0.46302732,2075.4,2074.4,0.5686272]
[1772787713442,0.46424985,2075.5,2074.5,0.241]
[1772787713642,5.41792827,2075.4,2074.6,0.5686272]
[1772787713843,0.46424985,2075.5,2074.6,0.5686272]
[1772787714142,4.47187219,2075.8,2074.8,0.5686272]
[1772787714445,5.883107,2075.7,2074.8,0.5686272]
[1772787714643,0.46479806,2075.7,2074.8,0.5686272]
[1772787715447,0.46479806,2075.5,2074.8,0.5686272]
[1772787715839,4.24793413,2075.8,2074.8,0.5686272]
[1772787716144,0.46265738,2075.6,2074.8,0.5686272]
[1772787719640,0.46938934,2075.8,2074.8,0.5686272]
[1772787719945,5.88680923,2075.7,2074.8,0.5686272]
[1772787720147,0.46999673,2075.6,2074.8,0.5686272]
[1772787720746,0.46999673,2075.8,2074.8,0.5686272]
[1772787721739,0.00559446,2075.9,2075.2,0.59356755]
[1772787722746,0.47854979,2076.2,2075.4,0.59356755]
[1772787723639,0.48394147,2076.2,2075.4,0.59356755]
[1772787724238,0.00539168,2076.2,2075.4,0.59356755]
[1772787725143,0.00539168,2076.2,2075.6,0.59356755]
[1772787725343,0.48243613,2076.2,2075.6,0.59719513]
[1772787726052,0.00539168,2076.2,2075.6,0.59719513]
[1772787726250,0.47865634,2076.6,2075.6,0.59719513]
[1772787727047,0.24074,2076.8,2075.6,0.59719513]
[1772787727347,0.47865634,2076.6,2075.6,0.59719513]
[1772787729950,0.48490895,2076.8,2075.8,0.59356755]
[1772787732447,0.00530846,2076.8,2076.0,0.59356755]
[1772787732652,0.47922875,2077.3,2076.2,0.59356755]
[1772787733548,0.48543853,2077.3,2076.2,0.59356755]
[1772787734746,0.48148944,2077.1,2076.2,0.59356755]
[1772787734949,0.48148944,2076.9,2076.2,0.59356755]
[1772787738354,0.48148944,2076.9,2075.6,14.62949758]
[1772787738557,0.48148944,2076.9,2075.7,0.59356755]
[1772787748563,4.00707413,2077.2,2075.7,0.59356755]
[1772787748564,0.503612,2076.7,2075.7,0.59356755]
[1772787754876,0.50141129,2076.5,2075.7,0.59356755]
[1772787755369,0.50141129,2076.3,2075.6,0.58841047]
[1772787756177,0.50136354,2076.1,2075.6,0.00362758]
[1772787756377,0.50136354,2076.1,2075.4,0.58478289]
[1772787756575,0.50136354,2076.1,2075.0,0.58478289]
[1772787756877,0.50136354,2075.9,2075.0,0.58478289]
[1772787757379,0.50136354,2075.9,2075.0,0.59024652]
[1772787758478,0.49813677,2075.8,2075.0,0.59024652]
[1772787758883,0.50212016,2075.8,2075.0,0.59024652]
[1772787769494,0.54573069,2075.8,2075.0,0.59024652]
[1772787771795,0.00398339,2075.8,2075.0,0.59024652]
[1772787772192,0.54010964,2075.8,2075.0,0.59024652]
[1772787772694,0.00398339,2075.8,2075.0,0.59024652]
[1772787773094,0.53612625,2076.2,2075.2,0.58478289]
[1772787774194,0.54060426,2076.2,2075.2,0.58478289]
[1772787778702,0.5417473,2076.0,2075.2,0.58478289]
[1772787780198,0.54622531,2076.2,2075.2,0.58478289]
[1772787781300,0.5417473,2076.0,2075.2,0.58478289]
[1772787786107,4.55788615,2076.2,2075.2,0.58478289]
[1772787786317,5.43819587,2076.1,2075.2,0.58478289]
[1772787786606,4.91094997,2076.0,2075.3,0.5549349]
[1772787786806,0.00447801,2076.2,2075.5,0.5549349]
[1772787787002,0.546694,2076.6,2075.7,0.5549349]
[1772787787505,4.00707413,2076.9,2075.7,0.5549349]
[1772787787506,0.546694,2076.8,2075.7,0.5549349]
[1772787787806,0.546694,2076.8,2075.9,0.5549349]
[1772787788007,0.55282445,2076.8,2075.9,0.5549349]
[1772787791510,0.546694,2076.7,2075.9,0.5549349]
[1772787795310,0.55282445,2076.8,2075.9,0.5549349]
[1772787796412,0.00613045,2076.8,2076.2,0.5549349]
[1772787797307,0.546694,2077.0,2076.2,0.5549349]
[1772787798413,0.00384297,2077.0,2076.2,0.5549349]
[1772787800209,0.24064,2077.7,2076.4,0.5549349]
[1772787800410,0.546694,2077.6,2076.4,0.5549349]
[1772787801014,0.546694,2077.6,2076.6,0.5549349]
[1772787801414,0.55170155,2077.6,2076.6,0.55983213]
[1772787802015,0.00500755,2077.6,2076.8,0.5549349]
[1772787802516,0.55170155,2077.6,2076.8,0.5549349]
[1772787804614,0.55170155,2077.6,2076.6,0.55983213]
[1772787805222,0.55170155,2077.6,2076.7,0.5549349]
[1772787807322,0.00500755,2077.6,2076.7,0.5549349]
[1772787807623,0.546694,2077.9,2076.7,0.5549349]
[1772787808428,0.546694,2077.8,2076.7,0.5549349]
[1772787810826,0.00343104,2077.9,2076.9,0.57745598]
[1772787811026,0.56592726,2077.9,2077.1,0.57745598]
[1772787813622,0.00343104,2077.9,2077.1,0.57745598]
[1772787814825,0.54505462,2077.9,2077.1,0.57745598]
[1772787818440,0.54162358,2077.2,2076.6,0.00489723]
[1772787818637,0.54162358,2077.2,2076.6,0.58473896]
[1772787822042,0.54162358,2077.7,2076.6,0.58473896]
[1772787822639,0.24065,2077.6,2076.6,0.00489723]
[1772787822843,0.54162358,2077.5,2076.6,0.00489723]
[1772787823938,0.54162358,2077.3,2076.6,0.00489723]
[1772787824747,0.54162358,2077.1,2076.2,0.57984173]
[1772787825745,0.54162358,2077.1,2076.2,0.58390268]
[1772787825942,0.54162358,2077.1,2076.2,0.00406095]
[1772787826145,0.54162358,2077.1,2076.2,0.58390268]
[1772787839552,0.54162358,2077.1,2076.2,0.00406095]
[1772787840456,0.54162358,2076.9,2076.2,0.00406095]
[1772787841157,0.54162358,2076.5,2075.3,20.25128788]
[1772787841357,0.54162358,2076.5,2075.7,0.57984173]
[1772787842156,0.54162358,2076.5,2075.7,0.58465837]
[1772787842556,0.24076,2076.6,2075.7,0.58465837]
[1772787842557,0.53916157,2076.6,2075.7,0.58465837]
[1772787842753,0.53916157,2076.9,2075.9,0.55348022]
[1772787844957,0.53916157,2076.7,2075.7,0.55829686]
[1772787864567,0.53916157,2076.6,2075.7,0.55829686]
[1772787865463,0.53916157,2076.5,2075.7,0.55829686]
[1772787866467,0.53916157,2076.1,2075.4,0.55348022]
[1772787866864,0.53916157,2076.3,2075.4,0.55348022]
[1772787867370,0.54396401,2076.3,2075.5,0.55348022]
[1772787872578,0.54396401,2076.3,2075.6,0.5742958]
[1772787872975,0.00480244,2076.3,2075.6,0.5742958]
[1772787873171,0.54287434,2076.2,2075.6,6.63058368]
[1772787873374,0.54287434,2076.2,2075.4,0.5793021]
[1772787873571,0.54287434,2076.2,2075.5,0.5742958]
[1772787874782,0.54287434,2076.2,2075.3,5.9180143]
[1772787874976,0.54287434,2076.1,2075.3,0.5742958]
[1772787875777,0.54287434,2076.1,2075.3,0.57959034]
[1772787877985,0.00480244,2076.3,2075.3,0.57959034]
[1772787878178,0.54287434,2076.2,2075.3,0.57959034]
[1772787880686,0.54287434,2076.0,2075.3,0.57959034]
[1772787885896,0.54287434,2076.0,2075.4,0.5742958]
[1772787886095,0.54287434,2076.2,2075.4,0.5742958]
[1772787891002,0.54287434,2075.7,2075.3,0.00529454]
[1772787891202,0.54287434,2075.7,2075.2,0.5742958]
[1772787892203,0.54287434,2075.7,2075.2,0.57990178]
[1772787893399,0.54287434,2075.8,2075.2,0.57990178]
[1772787894706,0.54287434,2076.2,2075.7,0.5742958]
[1772787895402,0.54287434,2076.2,2075.3,1.57563432]
[1772787895702,0.54287434,2076.2,2075.4,0.5742958]
[1772787898003,0.00480244,2076.3,2075.4,0.5742958]
[1772787898204,0.00480244,2076.3,2075.6,0.5742958]
[1772787898410,0.54767678,2076.3,2075.6,0.5742958]
[1772787898606,0.54767678,2076.3,2075.5,0.5742958]
[1772787901414,0.54767678,2076.3,2075.4,0.574638]
[1772787901606,0.54767678,2076.3,2075.2,0.00560598]
[1772787901607,0.54437216,2076.2,2075.2,0.00560598]
[1772787901914,0.54437216,2076.1,2075.2,0.00560598]
[1772787902313,0.54437216,2076.1,2075.2,0.58024398]
[1772787909730,0.00480244,2076.3,2075.5,0.574638]
[1772787910541,0.00480244,2076.3,2075.6,0.574638]
[1772787913333,0.5491746,2076.3,2075.5,6.05929732]
[1772787913532,0.5491746,2076.3,2075.2,0.00560598]
[1772787913533,0.5491746,2076.3,2075.2,0.58024398]
[1772787913830,0.54437216,2076.1,2075.2,0.58024398]
[1772787914734,0.5491746,2076.3,2075.2,0.58024398]
[1772787915626,0.5491746,2076.3,2075.4,0.574638]
[1772787920231,0.54437216,2076.2,2075.4,0.574638]
[1772787921736,0.54437216,2076.2,2075.2,0.58024398]
[1772787922338,0.54437216,2076.0,2075.2,0.58024398]
[1772787924838,0.54437216,2075.8,2074.9,0.574638]
[1772787925034,0.54437216,2075.4,2074.7,0.574638]
[1772787925234,0.54437216,2075.4,2074.5,0.574638]
[1772787925841,0.54437216,2075.3,2074.5,0.00406102]
[1772787926642,0.78528216,2075.3,2074.5,0.00406102]
[1772787926838,0.54437216,2075.2,2074.5,0.00406102]
[1772787932953,6.85637216,2075.2,2074.5,0.00406102]
[1772787933253,0.58180554,2075.1,2074.5,0.00406102]
[1772787935155,0.58180554,2075.1,2074.5,0.6009639]
[1772787938055,0.58180554,2075.5,2074.5,0.6009639]
[1772787947258,0.58180554,2075.5,2074.7,0.59690288]
[1772787953766,0.58180554,2075.3,2074.7,0.59690288]
[1772787959765,0.58180554,2075.5,2074.9,0.59690288]
[1772787960870,0.58180554,2075.5,2074.6,1.57667648]
[1772787960871,0.58180554,2075.2,2074.6,0.59690288]
[1772787961063,1.57667648,2075.3,2074.5,0.00406102]
[1772787961064,0.58180554,2075.0,2074.5,0.00406102]
[1772787961270,0.58180554,2075.0,2074.5,0.6009639]
[1772787961970,0.56199516,2075.5,2074.9,0.56340593]
[1772787963971,0.56199516,2075.7,2075.1,0.56340593]
[1772787964271,0.56199516,2075.6,2075.1,0.56340593]
[1772787968576,0.56199516,2075.6,2074.7,0.56340593]
[1772787968976,0.56199516,2075.4,2074.7,0.56340593]
[1772787969178,0.56199516,2075.2,2074.7,0.56340593]
[1772787972278,0.56199516,2075.3,2074.7,0.56340593]
[1772787975283,0.56199516,2075.5,2074.7,0.56340593]
[1772787975483,0.56199516,2075.3,2074.7,0.56340593]
[1772787976183,0.56199516,2075.5,2074.7,0.56340593]
[1772787976581,0.56199516,2075.7,2074.9,0.56340593]
[1772787978184,0.56199516,2075.9,2075.1,0.56340593]
[1772787985890,0.56199516,2075.9,2075.1,0.56340593]
[1772787986091,0.56199516,2075.9,2075.3,0.56340593]
[1772787987485,0.56199516,2076.1,2075.3,0.56340593]
[1772787987691,0.56199516,2076.1,2075.5,0.56340593]
[1772787987989,0.56199516,2076.2,2075.5,0.56340593]
[1772787988891,0.56199516,2076.1,2075.5,0.56340593]
[1772787989489,0.56199516,2075.9,2075.3,14.23440593]
[1772787989791,0.56199516,2075.9,2075.4,0.56340593]
[1772787989985,2.13773196,2076.0,2075.4,0.56340593]
[1772787990892,0.56199516,2076.0,2075.4,0.56340593]
[1772787992994,0.56583142,2076.3,2075.8,0.55458338]
[1772787993687,0.56583142,2076.3,2075.5,1.5757368]
[1772787993688,0.56583142,2076.3,2075.6,0.55458338]
[1772787994594,0.56102898,2076.1,2075.6,0.55458338]
[1772787997393,0.56583142,2076.3,2075.6,0.55458338]
[1772788001903,0.00480244,2076.3,2075.8,0.55458338]
[1772788002103,0.56102898,2076.4,2075.8,0.55458338]
[1772788002604,0.56102898,2076.6,2075.8,0.55458338]
[1772788003004,0.56537833,2076.6,2075.8,0.55458338]
[1772788004301,0.56102898,2077.0,2076.0,0.55458338]
[1772788005203,0.56102898,2077.3,2076.0,0.55458338]
[1772788005401,0.5646548,2077.3,2076.2,0.55458338]
[1772788005601,0.5646548,2077.3,2076.4,0.55458338]
[1772788006105,0.00362582,2077.3,2076.4,0.55458338]
[1772788006307,0.5646548,2077.3,2076.4,0.55458338]
[1772788006905,0.00362582,2077.3,2076.6,0.55458338]
[1772788007102,0.5646548,2077.3,2076.6,0.55458338]
[1772788007405,0.5646548,2077.3,2076.2,0.55458338]
[1772788007805,0.5646548,2077.3,2076.2,41.35458338]
[1772788008007,0.5646548,2077.3,2076.3,0.55458338]
[1772788011003,0.5646548,2077.3,2076.2,0.55458338]
[1772788021916,0.5646548,2077.3,2076.3,0.58358439]
[1772788023110,0.5646548,2077.3,2076.5,0.58358439]
[1772788024012,0.00362582,2077.3,2076.5,0.58358439]
[1772788025908,0.00362582,2077.3,2076.7,0.58358439]
[1772788026111,0.5493917,2077.6,2076.8,0.58358439]
[1772788027114,0.55382864,2077.6,2076.8,0.58358439]
[1772788027514,0.00443694,2077.6,2076.8,0.58358439]
[1772788028617,0.55382864,2077.6,2076.8,0.58358439]
[1772788039025,0.00443694,2077.6,2076.8,0.58358439]
[1772788040532,0.00443694,2077.6,2076.8,6.87114411]
[1772788040725,0.5493917,2077.8,2076.9,0.58358439]
[1772788041723,0.5530446,2077.8,2076.9,0.58358439]
[1772788042733,0.5530446,2077.8,2077.1,0.58358439]
[1772788044329,0.5493917,2078.1,2077.2,13.685]
[1772788044632,0.5493917,2078.1,2077.3,0.58358439]
[1772788045433,0.55538183,2078.1,2077.3,0.58358439]
[1772788046832,0.5493917,2078.0,2077.2,13.685]
[1772788047036,0.5493917,2078.0,2077.2,14.26858439]
[1772788047733,0.5493917,2078.0,2077.3,0.58358439]
[1772788048734,0.5493917,2078.0,2077.2,13.685]
[1772788049636,0.5493917,2078.0,2077.2,14.26858439]
[1772788050437,0.5493917,2078.0,2077.3,0.58358439]
[1772788052633,0.5493917,2078.0,2077.2,13.685]
[1772788053029,0.5493917,2078.0,2077.2,14.26695783]
[1772788053740,0.5493917,2078.0,2077.3,0.58195783]
[1772788059440,0.5493917,2078.0,2077.2,14.26695783]
[1772788060240,0.5493917,2078.0,2077.3,0.58195783]
[1772788072459,0.5493917,2078.0,2077.2,13.685]
[1772788072460,0.5884838,2077.8,2077.1,6.62878755]
[1772788072665,0.5884838,2077.8,2077.1,0.58195783]
[1772788076856,0.5884838,2077.5,2076.7,6.04682972]
[1772788077062,0.5884838,2077.5,2076.8,0.4482476]
[1772788077763,0.5884838,2077.4,2076.8,0.4482476]
[1772788079662,0.5884838,2077.3,2076.6,0.44991791]
[1772788081164,6.8964838,2077.5,2076.7,0.45217063]
[1772788081465,0.5884838,2077.4,2076.7,0.45217063]
[1772788082666,0.58826857,2077.7,2077.1,0.45178936]
[1772788084069,0.58826857,2077.5,2076.9,0.44779516]
[1772788085766,0.58826857,2077.7,2076.9,0.44779516]
[1772788086767,0.58826857,2077.5,2076.9,0.44779516]
[1772788086966,1.57346519,2077.6,2076.9,0.44779516]
[1772788086967,0.58826857,2077.3,2076.9,0.44779516]
[1772788088566,0.58826857,2077.3,2076.7,0.44836162]
[1772788089464,0.58826857,2077.1,2076.7,0.44836162]
[1772788089672,0.58826857,2076.9,2076.4,0.44836162]
[1772788093573,0.58826857,2077.3,2076.4,0.44836162]
[1772788102888,0.58826857,2077.1,2076.3,0.44387866]
[1772788112294,0.24069,2077.2,2076.1,0.42996569]
[1772788112295,0.56078753,2076.9,2076.1,0.42996569]
[1772788112593,0.56078753,2076.6,2076.1,0.42996569]
[1772788112791,0.56514818,2076.6,2076.1,0.42996569]
[1772788121095,0.56078753,2076.2,2075.5,0.44724833]
[1772788121301,0.56078753,2076.2,2075.2,0.44724833]
[1772788121302,1.57490089,2075.8,2075.2,0.44724833]
[1772788121501,0.56078753,2075.7,2075.2,0.44724833]
[1772788121802,0.56078753,2075.5,2075.1,0.44724833]
[1772788121999,0.56078753,2075.5,2075.1,0.45324155]
[1772788122599,0.24084,2076.0,2074.7,0.32192313]
[1772788122600,0.56078753,2075.3,2074.7,0.32192313]
[1772788122795,0.56078753,2074.9,2074.5,0.32192313]
[1772788123094,0.56078753,2074.9,2074.2,14.29892313]
[1772788123701,0.56078753,2074.5,2074.2,0.004405]
[1772788123999,0.56078753,2074.5,2074.0,0.32192313]
[1772788124901,0.56078753,2074.5,2074.0,0.32584734]
[1772788125098,0.56078753,2074.5,2074.0,0.00392421]
[1772788125504,0.56078753,2074.5,2073.4,0.35034227]
[1772788126500,0.56078753,2074.5,2073.4,0.35571863]
[1772788131403,0.56078753,2074.5,2073.6,0.37929658]
[1772788139809,0.56078753,2074.3,2073.4,0.37853443]
[1772788140005,0.56078753,2074.3,2073.4,0.00537636]
[1772788141911,0.56843358,2073.9,2072.5,0.37354805]
[1772788142110,0.56843358,2073.9,2072.6,0.38039351]
[1772788142313,0.56843358,2073.9,2072.8,0.38039351]
[1772788142915,0.56843358,2073.9,2072.8,0.38449637]
[1772788144512,0.56843358,2073.9,2072.8,0.00410286]
[1772788145314,0.56843358,2073.7,2072.4,0.36134475]
[1772788146417,0.56843358,2073.7,2072.4,0.36633064]
[1772788147118,0.56843358,2073.5,2072.4,0.36363694]
[1772788149718,0.56843358,2073.3,2072.4,0.00498589]
[1772788149918,0.57417973,2073.3,2072.4,0.00498589]
[1772788150620,0.57417973,2073.3,2072.4,0.3552929]
[1772788160625,0.57417973,2073.3,2072.6,0.35798435]
[1772788161226,0.57417973,2073.3,2072.8,0.35798435]
[1772788161227,0.00574615,2073.3,2072.8,0.35798435]
[1772788161527,0.56843358,2073.7,2072.8,0.35798435]
[1772788162434,0.57430853,2073.7,2072.8,0.35798435]
[1772788167135,0.57430853,2073.7,2072.9,0.24119]
[1772788167335,0.57430853,2073.7,2073.0,0.35271063]
[1772788170643,0.57430853,2073.7,2072.8,0.3498952]
[1772788172236,0.57430853,2073.7,2072.6,0.34949608]
[1772788172435,0.54194206,2073.3,2072.4,0.00498589]
[1772788172645,0.54194206,2073.1,2071.9,0.35448197]
[1772788172938,0.54194206,2072.9,2071.9,0.35448197]
[1772788173142,0.54194206,2072.7,2071.8,0.89911911]
[1772788173342,0.54194206,2072.7,2071.8,1.25360108]
[1772788173838,0.54194206,2072.7,2071.8,1.25925706]
[1772788175937,0.54194206,2072.7,2071.9,0.34371095]
[1772788176339,0.54194206,2072.7,2071.8,0.90477509]
[1772788176340,0.54194206,2072.5,2071.8,0.90477509]
[1772788176546,0.54194206,2072.5,2071.2,0.56797655]
[1772788176742,0.54194206,2072.3,2071.0,0.56797655]
[1772788177245,0.38037145,2071.9,2070.5,0.56797655]
[1772788177442,0.2413,2072.0,2070.5,0.56797655]
[1772788177443,0.38037145,2071.7,2070.5,0.56797655]
[1772788177636,0.38397914,2071.7,2070.5,0.57379232]
[1772788178035,0.38047313,2071.5,2070.5,0.00581577]
[1772788178236,0.38047313,2071.5,2070.3,0.56797655]
[1772788179045,0.37465736,2071.3,2070.1,0.56797655]
[1772788179245,0.37465736,2071.2,2070.1,0.00367885]
[1772788180040,0.37465736,2071.2,2069.3,40.8]
[1772788180041,0.37465736,2071.0,2069.6,0.56797655]
[1772788180241,0.37465736,2071.0,2069.3,40.8]
[1772788180242,0.37465736,2071.0,2069.8,0.56797655]
[1772788180943,0.37465736,2071.0,2069.8,0.57367574]
[1772788181345,0.37465736,2071.0,2070.0,0.56797655]
[1772788182146,0.37465736,2071.0,2069.8,0.57367574]
[1772788182745,0.24136,2071.5,2070.0,0.56797655]
[1772788182746,0.36115222,2071.4,2070.0,0.56797655]
[1772788187349,0.36115222,2071.4,2070.2,0.56797655]
[1772788187549,0.44111217,2071.6,2070.6,0.56797655]
[1772788188450,0.00360769,2071.7,2070.8,0.56797655]
[1772788189352,0.00360769,2071.7,2071.0,0.56797655]
[1772788190350,0.4613504,2072.8,2071.2,0.56797655]
[1772788191352,0.46649484,2072.8,2071.2,0.56797655]
[1772788192751,0.46649484,2072.8,2071.4,0.56797655]
[1772788193047,0.46649484,2072.8,2071.4,0.57355418]
[1772788195055,0.46649484,2072.8,2071.6,0.56797655]
[1772788195257,0.46649484,2072.8,2071.7,0.56797655]
[1772788201257,0.46063131,2072.6,2071.7,0.56797655]
[1772788202254,0.24121,2072.7,2071.8,0.57326322]
[1772788202255,0.46104443,2072.7,2071.8,0.57326322]
[1772788206353,0.45962951,2072.3,2071.5,0.57326322]
[1772788206560,0.45405188,2071.9,2071.1,0.57326322]
[1772788207560,0.45405188,2071.9,2071.1,0.57829133]
[1772788208356,0.45405188,2071.9,2071.1,0.00502811]
[1772788209157,0.45405188,2071.9,2071.1,0.57829133]
[1772788215070,0.47670153,2072.0,2071.1,0.57829133]
[1772788216169,0.47989769,2071.8,2071.1,0.57829133]
[1772788218871,0.4799318,2072.0,2071.1,0.57829133]
[1772788219568,5.41793498,2071.9,2071.1,0.57829133]
[1772788219769,0.4799318,2071.8,2071.1,0.57829133]
[1772788221175,0.4799318,2071.8,2071.1,0.00502811]
[1772788221571,0.24133,2071.7,2071.1,0.00502811]
[1772788221876,0.52146328,2071.4,2070.4,0.57326322]
[1772788222672,0.52146328,2071.4,2070.4,0.57664385]
[1772788223782,0.51959753,2071.2,2070.4,0.57664385]
[1772788223973,0.52538662,2071.2,2070.4,0.57664385]
[1772788225876,0.52261506,2070.8,2070.2,0.57326322]
[1772788226982,0.52261506,2070.8,2070.2,0.57816098]
[1772788228685,0.52516223,2071.0,2070.2,0.57816098]
[1772788228888,0.52516223,2070.6,2069.2,0.57326322]
[1772788229081,0.52516223,2070.4,2069.2,0.57326322]
[1772788229580,0.52516223,2070.4,2069.3,0.57326322]
[1772788229983,0.52516223,2070.8,2069.3,0.57681685]
[1772788230180,0.544578,2070.6,2069.4,0.57326322]
[1772788231480,0.544578,2070.6,2069.6,0.54822325]
[1772788231688,0.56683313,2070.0,2068.6,0.54498485]
[1772788231886,0.56683313,2069.6,2068.6,0.54498485]
[1772788232786,0.57078041,2069.6,2068.6,0.55034063]
[1772788234685,0.57674736,2069.4,2068.6,0.00535578]
[1772788234983,0.57674736,2069.0,2068.1,0.54498485]
[1772788236082,0.57674736,2069.0,2068.1,0.55056782]
[1772788236389,0.57674736,2068.8,2068.1,0.00558297]
[1772788236584,0.57674736,2068.8,2068.1,0.55056782]
[1772788237289,0.57674736,2069.2,2068.1,0.55056782]
[1772788239483,0.57674736,2069.0,2068.1,0.55056782]
[1772788239688,0.57674736,2069.0,2068.1,0.00558297]
[1772788239888,0.57674736,2069.0,2068.1,0.55056782]
[1772788240487,0.57674736,2068.8,2068.1,0.55056782]
[1772788240685,0.57674736,2068.8,2067.7,0.54498485]
[1772788240883,0.57674736,2068.6,2067.7,0.54498485]
[1772788241792,0.57674736,2068.6,2067.7,0.5512545]
[1772788241993,0.00394728,2069.6,2067.0,2.23824881]
[1772788241994,0.57674736,2068.3,2067.0,0.54498485]
[1772788242289,0.57674736,2068.0,2067.0,0.54498485]
[1772788242995,0.58040963,2068.0,2067.0,0.54957929]
[1772788243697,0.00366227,2068.0,2067.1,0.54498485]
[1772788245101,0.57674736,2068.5,2067.1,0.54498485]
[1772788245901,0.57674736,2068.5,2067.5,0.54498485]
[1772788246096,0.58293187,2068.5,2067.5,0.54498485]
[1772788246599,0.57674736,2068.3,2067.5,0.54498485]
[1772788246794,0.00618451,2068.5,2067.5,0.54498485]
[1772788247192,0.57674736,2068.2,2067.5,0.54498485]
[1772788247400,0.57674736,2068.2,2067.1,0.54498485]
[1772788247995,0.24175,2068.1,2067.1,0.54498485]
[1772788248400,0.81849736,2068.1,2067.1,0.54498485]